fUSD/lending_fUSD_20250328
["ID","MTS","AMOUNT","RATE_DAILY","PERIOD"]
[356792875,1743202250829,-150.0,0.00024888,2]
[356792876,1743202250840,-150.0,0.00024889,2]
[356792877,1743202250850,-151.0,0.0002489,7]
[356792878,1743202250860,-218.311288,0.0002489,7]
[356792879,1743202250870,-269.81651,0.0002489,7]
[356792880,1743202250882,-151.0,0.0002489,7]
[356792881,1743202250892,-151.0,0.0002489,7]
[356792882,1743202250903,-150.0,0.00024899,2]
[356792883,1743202250912,-411.98,0.000249,2]
[356792884,1743202250922,-411.98,0.000249,2]
[356792885,1743202250932,-411.98,0.000249,2]
[356792886,1743202250941,-411.98,0.000249,2]
[356792887,1743202250951,-411.98,0.000249,2]
[356792888,1743202250961,-411.98,0.000249,2]
[356792889,1743202250971,-411.98,0.000249,2]
[356792890,1743202250980,-411.98,0.000249,2]
[356792891,1743202250990,-411.98,0.000249,2]
[356792892,1743202251000,-411.98,0.000249,2]
[356792893,1743202251010,-411.98,0.000249,2]
[356792894,1743202251020,-411.98,0.000249,2]
[356792895,1743202251030,-411.98,0.000249,2]
[356792896,1743202251039,-411.98,0.000249,2]
[356792897,1743202251049,-411.98,0.000249,2]
[356792898,1743202251059,-411.98,0.000249,2]
[356792899,1743202251069,-411.98,0.000249,2]
[356792900,1743202251078,-411.98,0.000249,2]
[356792901,1743202251088,-411.98,0.000249,2]
[356792902,1743202251097,-412.17617786,0.000249,2]
[356792903,1743202251107,-151.0,0.000249,7]
[356792904,1743202251117,-151.0,0.000249,7]
[356792905,1743202251126,-151.0,0.000249,7]
[356792906,1743202251136,-150.0,0.000249,2]
[356792907,1743202251145,-151.0,0.000249,7]
[356792908,1743202251155,-251.703509,0.000249,7]
[356792909,1743202251164,-151.0,0.000249,7]
[356792910,1743202251173,-151.0,0.000249,7]
[356792911,1743202251183,-151.0,0.000249,7]
[356792912,1743202251192,-151.0,0.000249,7]
[356792913,1743202251202,-197.392158,0.000249,7]
[356792914,1743202251212,-197.392158,0.000249,7]
[356792915,1743202251222,-151.0,0.000249,7]
[356792916,1743202251231,-151.0,0.000249,7]
[356792917,1743202251241,-151.0,0.000249,7]
[356792918,1743202251252,-13900.0,0.000249,9]
[356792919,1743202251262,-106702.765855,0.000249,3]
[356792920,1743202251272,-151.31005,0.000249,7]
[356792921,1743202251281,-185.336864,0.000249,7]
[356792922,1743202251291,-185.336864,0.000249,7]
[356792923,1743202251300,-151.0,0.000249,7]
[356792924,1743202251309,-151.0,0.000249,7]
[356792925,1743202251319,-185.336864,0.000249,7]
[356792926,1743202251328,-185.336864,0.000249,7]
[356792927,1743202251337,-502.5,0.000249,2]
[356792928,1743202251347,-502.5,0.000249,2]
[356792929,1743202251356,-236.290968,0.000249,7]
[356792930,1743202251365,-151.0,0.000249,7]
[356792931,1743202251375,-687.6382,0.000249,2]
[356792932,1743202251384,-687.6382,0.000249,2]
[356792933,1743202251395,-199.34802502,0.00025,2]
[356792934,1743202251404,-1598.89800257,0.00025,2]
[356792935,1743202251414,-255.61750814,0.00025,2]
[356792936,1743202251423,-192.83471599,0.00025,2]
[356792937,1743202251433,-200.0,0.00025,2]
[356792938,1743202251442,-250.0,0.00025,2]
[356792939,1743202251452,-919.45,0.00025031,2]
[356792940,1743202251461,-280.0,0.000253,10]
[356792941,1743202251472,-443.84,0.00025796,2]
[356792942,1743202251481,-150.0,0.00026027,2]
[356792943,1743202251491,-2000.0,0.0002665,4]
[356792944,1743202251501,-443.84,0.00026755,2]
[356792945,1743202251510,-440.3,0.00026755,2]
[356792946,1743202251519,-1127.86,0.00026755,2]
[356792947,1743202251529,-1687.91,0.00026755,2]
[356792948,1743202251538,-221.22,0.00026849,2]
[356792949,1743202251548,-164.32,0.00026849,2]
[356792950,1743202251557,-184.33,0.00026849,2]
[356792951,1743202251567,-783.04280423,0.00027,7]
[356792952,1743202251576,-300.0,0.00027,30]
[356792953,1743202251586,-300.0,0.00027,2]
[356792954,1743202251595,-150.0,0.00027123,30]
[356792955,1743202251604,-482.578,0.00027191,2]
[356792956,1743202251614,-1422.0,0.00027191,2]
[356792957,1743202251623,-370.468,0.00027191,2]
[356792958,1743202251632,-640.962,0.00027191,2]
[356792959,1743202251642,-225.768,0.00027191,2]
[356792960,1743202251651,-3780.747,0.00027191,2]
[356792961,1743202251663,-151.0,0.00027191,2]
[356792962,1743202251672,-1016.0,0.00027191,2]
[356792963,1743202251682,-3945.0,0.00027191,2]
[356792964,1743202251692,-150.0,0.0002726,30]
[356792965,1743202251701,-919.45,0.00027295,2]
[356792966,1743202251711,-150.0,0.00027397,2]
[356792967,1743202251721,-150.0,0.00027397,30]
[356792968,1743202251731,-435.14,0.00027397,2]
[356792969,1743202251740,-150.0,0.00027534,30]
[356792970,1743202251749,-155.48232002,0.00027567,2]
[356792971,1743202251759,-150.0,0.00027671,30]
[356792972,1743202251768,-356.1,0.00027713,2]
[356792973,1743202251778,-454.98,0.00027713,2]
[356792974,1743202251787,-154.86,0.00027713,2]
[356792975,1743202251799,-311.48,0.00027713,2]
[356792976,1743202251808,-321.09,0.00027713,2]
[356792977,1743202251818,-309.13,0.00027713,2]
[356792978,1743202251827,-150.0,0.00027808,30]
[356792979,1743202251838,-391.0,0.0002783,15]
[356792980,1743202251847,-150.0,0.00027945,30]
[356792981,1743202251856,-150.0,0.00028082,30]
[356792982,1743202251866,-208.25249058,0.00028219,30]
[356792983,1743202251877,-2000.0,0.00028557,4]
[356792984,1743202251886,-441.63982839,0.00028567,2]
[356792985,1743202251896,-150.0,0.00028767,2]
[356792986,1743202251906,-435.14,0.00028767,2]
[356792987,1743202251915,-350.0,0.00029,2]
[356792988,1743202251924,-919.45,0.00029559,2]
[356792989,1743202251934,-382.0,0.00029836,2]
[356792990,1743202251943,-151.0,0.0002999,7]
[356792991,1743202251952,-151.0,0.0002999,7]
[356792992,1743202251962,-151.0,0.0002999,7]
[356792993,1743202251971,-258.545718,0.0002999,7]
[356792994,1743202251980,-197.392158,0.0002999,7]
[356792995,1743202251990,-197.392158,0.0002999,7]
[356792996,1743202251999,-151.0,0.0002999,7]
[356792997,1743202252009,-151.0,0.0002999,7]
[356792998,1743202252018,-151.0,0.0002999,7]
[356792999,1743202252027,-185.336864,0.0002999,7]
[356793000,1743202252037,-151.0,0.0002999,7]
[356793001,1743202252046,-185.336864,0.0002999,7]
[356793002,1743202252055,-183.0,0.0003,120]
[356793003,1743202252065,-10782.16558251,0.0003,2]
[356793004,1743202252074,-2979.35337676,0.0003,10]
[356793005,1743202252084,-278.021766,0.0003,7]
[356793006,1743202252093,-150.0,0.00030136,2]
[356793007,1743202252103,-200.0,0.00030137,2]
[356793008,1743202252112,-435.14,0.00030137,2]
[356793009,1743202252121,-1422.0,0.00030191,2]
[356793010,1743202252131,-151.0,0.00030191,2]
[356793011,1743202252140,-1016.0,0.00030191,2]
[356793012,1743202252149,-1702.532,0.00030191,2]
[356793013,1743202252158,-502.79535588,0.00030252,5]
[356793014,1743202252168,-500.0,0.00030252,5]
[356793015,1743202252177,-184.18,0.00030334,2]
[356793016,1743202252186,-1003.45970058,0.00030352,5]
[356793017,1743202252196,-150.0,0.000304,2]
[356793018,1743202252205,-2000.0,0.00030464,4]
[356793019,1743202252215,-300.0,0.000305,2]
[356793020,1743202252225,-300.0,0.000305,2]
[356793021,1743202252235,-300.0,0.000305,2]
[356793022,1743202252244,-591.99101017,0.000305,2]
[356793023,1743202252254,-373.0,0.00030613,30]
[356793024,1743202252263,-151.0,0.0003089,7]
[356793025,1743202252272,-151.0,0.0003089,7]
[356793026,1743202252282,-151.0,0.0003089,7]
[356793027,1743202252291,-151.0,0.0003089,7]
[356793028,1743202252301,-151.0,0.0003089,7]
[356793029,1743202252311,-151.0,0.0003089,7]
[356793030,1743202252320,-197.392158,0.0003089,7]
[356793031,1743202252329,-197.392158,0.0003089,7]
[356793032,1743202252339,-197.392158,0.0003089,7]
[356793033,1743202252348,-197.392158,0.0003089,7]
[356793034,1743202252357,-151.0,0.0003089,7]
[356793035,1743202252366,-270.972184,0.0003089,7]
[356793036,1743202252375,-1032.274884,0.0003089,14]
[356793037,1743202252384,-151.0,0.0003089,7]
[356793038,1743202252393,-151.0,0.0003089,7]
[356793039,1743202252403,-151.0,0.0003089,7]
[356793040,1743202252412,-151.0,0.0003089,7]
[356793041,1743202252422,-185.336864,0.0003089,7]
[356793042,1743202252431,-185.336864,0.0003089,7]
[356793043,1743202252440,-151.0,0.0003089,7]
[356793044,1743202252449,-151.0,0.0003089,7]
[356793045,1743202252459,-185.336864,0.0003089,7]
[356793046,1743202252469,-185.336864,0.0003089,7]
[356793047,1743202252478,-406614.67236198,0.000309,2]
[356793048,1743202252487,-2728.50520134,0.000309,2]
[356793049,1743202252497,-151.0,0.000309,7]
[356793050,1743202252507,-292.264397,0.000309,7]
[356793051,1743202252517,-151.0,0.000309,7]
[356793052,1743202252527,-197.392158,0.000309,7]
[356793053,1743202252629,-197.392158,0.000309,7]
[356793054,1743202252640,-151.0,0.000309,7]
[356793055,1743202252650,-151.0,0.000309,7]
[356793056,1743202252660,-18500.0,0.000309,11]
[356793057,1743202252670,-185.336864,0.000309,7]
[356793058,1743202252679,-151.0,0.000309,7]
[356793059,1743202252688,-185.336866,0.000309,7]
[356793060,1743202252698,-151.0,0.000309,7]
[356793061,1743202252708,-172.548647,0.00030908,2]
[356793062,1743202252717,-595.00711247,0.00031,2]
[356793063,1743202252727,-400.0,0.00031,2]
[356793064,1743202252736,-150.0,0.00031506,2]
[356793065,1743202252746,-435.14,0.00031507,2]
[356793066,1743202252755,-52401.80934266,0.0003154,2]
[356793067,1743202252765,-902.3331482,0.00031647,4]
[356793068,1743202252774,-150.53879939,0.000318,2]
[356793069,1743202252784,-919.45,0.00031823,2]
[356793070,1743202252794,-270.1,0.000319,7]
[356793071,1743202252806,-2000.0,0.000323,2]
[356793072,1743202252816,-2000.0,0.00032371,4]
[356793073,1743202252825,-441.63982839,0.00032433,2]
[356793074,1743202252835,-151.0,0.00032534,7]
[356793075,1743202252846,-157.47874011,0.00032547,2]
[356793076,1743202252855,-151.0,0.00032547,7]
[356793077,1743202252865,-217.94944954,0.00032547,2]
[356793078,1743202252874,-177.95273777,0.00032547,6]
[356793079,1743202252884,-277.35467674,0.00032547,2]
[356793080,1743202252893,-16629.9868396,0.00032547,2]
[356793081,1743202252903,-8362.6744992,0.00032547,2]
[356793082,1743202252912,-6028.613021,0.00032612,2]
[356793083,1743202252922,-12195.8641328,0.00032612,2]
[356793084,1743202252931,-243.862154,0.00032612,7]
[356793085,1743202252941,-197.392158,0.00032634,7]
[356793086,1743202252951,-197.392148,0.00032634,7]
[356793087,1743202252962,-221.22,0.00032646,2]
[356793088,1743202252971,-184.33,0.00032646,2]
[356793089,1743202252981,-360000.0,0.00032647,120]
[356793090,1743202252990,-2000.0,0.00032647,2]
[356793091,1743202253000,-407.67608088,0.00032647,3]
[356793092,1743202253010,-558.79834869,0.00032647,5]
[356793093,1743202253019,-1973.01201148,0.00032647,5]
[356793094,1743202253028,-207.52511021,0.00032647,10]
[356793095,1743202253037,-971.12775308,0.00032647,5]
[356793096,1743202253047,-588.62774803,0.00032647,5]
[356793097,1743202253056,-1498.80279835,0.00032647,5]
[356793098,1743202253066,-1879.60309323,0.00032647,7]
[356793099,1743202253075,-18793.2650608,0.00032647,5]
[356793100,1743202253084,-217.3158117,0.00032647,5]
[356793101,1743202253095,-1073.23366615,0.00032647,5]
[356793102,1743202253103,-20401.27372487,0.00032647,5]
[356793103,1743202253113,-800.0,0.00032647,5]
[356793104,1743202253122,-2376.45856895,0.00032647,5]
[356793105,1743202253131,-240.13921879,0.00032647,5]
[356793106,1743202253140,-300.77083039,0.00032647,14]
[356793107,1743202253149,-222.0,0.00032647,30]
[356793108,1743202253159,-3699.12851665,0.00032647,2]
[356793109,1743202253168,-3219.48535692,0.00032647,2]
[356793110,1743202253177,-160.51161668,0.00032647,2]
[356793111,1743202253187,-927.20570446,0.00032647,2]
[356793112,1743202253196,-266.71309543,0.00032647,16]
[356793113,1743202253206,-229.51913827,0.00032647,20]
[356793114,1743202253216,-250.23354328,0.00032647,7]
[356793115,1743202253226,-1386556.08188278,0.00032647,30]
[356793116,1743202253235,-31847.46676892,0.00032647,30]
[356793117,1743202253245,-1009.41607503,0.00032647,2]
[356793118,1743202253255,-151.0,0.00032647,7]
[356793119,1743202253265,-151.0,0.00032647,7]
[356793120,1743202253274,-163.8785552,0.00032658,30]
[356793121,1743202253283,-309.1920848,0.0003269,30]
[356793122,1743202253293,-150.0,0.00032876,2]
[356793123,1743202253302,-163.8785552,0.00032877,30]
[356793124,1743202253313,-435.14,0.00032877,2]
[356793125,1743202253322,-23200.0,0.000329,12]
[356793126,1743202253331,-450.0,0.00033,2]
[356793127,1743202253340,-163.8785552,0.00033123,30]
[356793128,1743202253350,-445.631,0.00033191,2]
[356793129,1743202253359,-151.0,0.00033191,2]
[356793130,1743202253369,-1007.0,0.00033191,2]
[356793131,1743202253379,-163.8785552,0.0003337,30]
[356793132,1743202253388,-4462.4997122,0.00033577,2]
[356793133,1743202253397,-9027.6221069,0.00033577,2]
[356793134,1743202253407,-151.0,0.000336,7]
[356793135,1743202253417,-66351.26363046,0.000336,2]
[356793136,1743202253426,-163.8785552,0.00033616,30]
[356793137,1743202253436,-163.8785552,0.00033836,30]
[356793138,1743202253445,-1553.26,0.00034082,2]
[356793139,1743202253455,-782.39,0.00034082,2]
[356793140,1743202253465,-443.84,0.00034082,2]
[356793141,1743202253475,-782.39,0.00034082,2]
[356793142,1743202253484,-443.84,0.00034082,2]
[356793143,1743202253493,-443.84,0.00034082,2]
[356793144,1743202253503,-163.8785552,0.00034082,30]
[356793145,1743202253512,-919.45,0.00034087,2]
[356793146,1743202253522,-150.0,0.00034246,2]
[356793147,1743202253531,-2000.0,0.00034279,4]
[356793148,1743202253540,-150.0,0.00034548,10]
[356793149,1743202253550,-3138.35138088,0.00035,2]
[356793150,1743202253560,-500.0,0.00035,2]
[356793151,1743202253569,-782.39,0.00035041,2]
[356793152,1743202253578,-311.67,0.00035068,2]
[356793153,1743202253588,-2000.0,0.000351,2]
[356793154,1743202253597,-500.0,0.00035596,7]
[356793155,1743202253607,-150.0,0.00035616,2]
[356793156,1743202253617,-155.57,0.00035616,2]
[356793157,1743202253626,-500.0,0.00036002,7]
[356793158,1743202253635,-2000.0,0.00036186,4]
[356793159,1743202253644,-151.0,0.00036191,2]
[356793160,1743202253654,-155.48232002,0.00036233,2]
[356793161,1743202253663,-441.63982839,0.000363,2]
[356793162,1743202253672,-919.45,0.00036351,2]
[356793163,1743202253682,-500.0,0.00036355,7]
[356793164,1743202253691,-150.685,0.00036628,7]
[356793165,1743202253700,-155.57,0.00036664,2]
[356793166,1743202253710,-22117.08,0.000367,3]
[356793167,1743202253719,-500.0,0.00036793,7]
[356793168,1743202253729,-500.0,0.00036964,7]
[356793169,1743202253739,-150.0,0.00036986,2]
[356793170,1743202253748,-152338.95195536,0.00037,2]
[356793171,1743202253757,-550.0,0.00037,2]
[356793172,1743202253767,-4176.38591979,0.0003759,2]
[356793173,1743202253777,-155.57,0.00037712,2]
[356793174,1743202253786,-167.27349062,0.000378,2]
[356793175,1743202253797,-2000.0,0.000378,2]
[356793176,1743202253810,-2184.4970752,0.00038,2]
[356793177,1743202253819,-261.77974876,0.00038093,4]
[356793178,1743202253829,-500.0,0.0003822,7]
[356793179,1743202253839,-500.0,0.00038305,7]
[356793180,1743202253848,-152.0,0.00038312,3]
[356793181,1743202253857,-150.0,0.00038356,2]
[356793182,1743202253868,-500.0,0.00038391,7]
[356793183,1743202253878,-221.22,0.00038443,2]
[356793184,1743202253887,-184.33,0.00038443,2]
[356793185,1743202253897,-919.45,0.00038615,2]
[356793186,1743202253907,-155.57,0.00038759,2]
[356793187,1743202253916,-502.642,0.00038893,53]
[356793188,1743202253926,-600.0,0.00039,2]
[356793189,1743202253936,-151.0,0.00039191,2]
[356793190,1743202253946,-225.08,0.000392,14]
[356793191,1743202253955,-1000.0,0.000395,50]
[356793192,1743202253965,-44234.16,0.000397,6]
[356793193,1743202253975,-206.3643983,0.00039726,2]
[356793194,1743202253984,-73038.1840487,0.00039781,7]
[356793195,1743202253993,-67492.92392538,0.00039781,7]
[356793196,1743202254335,-1339.941315,0.00021,2]
[356793197,1743202254345,-1045.90138306,0.00024567,2]
[356793198,1743202254451,-1339.941315,0.00024776,7]
[356793199,1743202254461,-1339.941315,0.000248,7]
[356793200,1743202254470,-1339.941315,0.000249,7]
[356793201,1743202254480,-1117.0,0.00027191,2]
[356793202,1743202254490,-1117.0,0.00030191,2]
[356793203,1743202254499,-1339.941315,0.000309,7]
[356793204,1743202254508,-681.78871036,0.00032547,2]
[356793205,1743202254518,-1339.941315,0.00032647,7]
[356793206,1743202254527,-1339.941315,0.00032647,7]
[356793207,1743202254536,-1117.0,0.00033191,2]
[356793208,1743202254546,-1339.941315,0.000336,7]
[356793209,1743202254555,-1117.0,0.00036191,2]
[356793210,1743202254565,-1117.0,0.00039191,2]
[356793211,1743202254574,-10093.20724778,0.00039781,7]
[356793212,1743202254597,-1339.941315,0.00037,7]
[356793213,1743202254606,-17931.60090853,0.00039781,7]
[356793214,1743202254617,-14281.6915,0.00039781,7]
[356793215,1743202254628,-1968.95409554,0.00039781,7]
[356793217,1743202327584,153.205288,7.945e-05,2]
[356793226,1743202987897,340.943752,7.945e-05,2]
[356793232,1743203168677,196.5,0.00013699,2]
[356793245,1743203431518,-250.0,0.00022293,2]
[356793246,1743203431528,-500.0,0.000268,2]
[356793247,1743203431538,-188.03,0.00026849,2]
[356793248,1743203431548,-196.5,0.00027397,2]
[356793249,1743203431558,-150.99,0.00029577,2]
[356793250,1743203431568,-171.64,0.00029577,2]
[356793251,1743203431578,-255.17,0.000305,2]
[356793252,1743203431588,-211.0,0.0003209,2]
[356793253,1743203431598,-188.03,0.00032646,2]
[356793254,1743203431608,-150.0,0.00032647,2]
[356793255,1743203431618,-150.0,0.00032647,3]
[356793256,1743203431628,-1655.93110678,0.00032647,120]
[356793257,1743203431638,-211.0,0.0003349,2]
[356793258,1743203431648,-367.78,0.00034649,2]
[356793259,1743203431658,-211.0,0.0003489,2]
[356793260,1743203431667,-572.2951564,0.000351,2]
[356793261,1743203431685,-472.7048436,0.000351,2]
[356793262,1743203431696,-1000.0,0.000351,2]
[356793263,1743203431705,-500.0,0.00035485,7]
[356793264,1743203431715,-504.09427576,0.00035566,7]
[356793265,1743203431725,-235.0,0.00035577,2]
[356793266,1743203431735,-38.74088064,0.00035616,2]
[356793267,1743203431747,-116.82911936,0.00035616,2]
[356793268,1743203431758,-150.0,0.00035749,7]
[356793269,1743203431767,-207.78,0.00035821,2]
[356793270,1743203431777,-200.0,0.00035845,2]
[356793271,1743203431788,-150.0,0.00035851,2]
[356793272,1743203431798,-500.0,0.00035863,2]
[356793273,1743203431808,-184.32,0.00035922,120]
[356793274,1743203431818,-371.61488064,0.00036268,7]
[356793275,1743203431830,-128.38511936,0.00036268,7]
[356793276,1743203431840,-211.0,0.0003629,2]
[356793277,1743203431850,-150.0,0.00036521,2]
[356793278,1743203431859,-56.06130845,0.00036521,45]
[356793280,1743203431872,-245.52369155,0.00036521,45]
[356793282,1743203431881,-459.09676706,0.0003658,2]
[356793284,1743203431893,-540.90323294,0.0003658,2]
[356793286,1743203431903,-2096.32263641,0.00036656,2]
[356793288,1743203431915,-2937.37850542,0.00036656,2]
[356793290,1743203431927,-981.13199423,0.00036656,2]
[356793293,1743203431938,-1368.93615679,0.00036656,2]
[356793294,1743203431950,-5898.70911555,0.00036656,2]
[356793296,1743203431962,-10617.5215916,0.00036656,2]
[356793297,1743203431972,-250.0,0.00036777,2]
[356793299,1743203431981,-367.78,0.00036913,2]
[356793301,1743203431991,-155.57,0.00036994,2]
[356793302,1743203432001,-184.18,0.00037206,2]
[356793304,1743203432011,-166.66,0.00037664,2]
[356793306,1743203432021,-211.0,0.0003768,2]
[356793307,1743203432031,-500.0,0.00037798,15]
[356793309,1743203432040,-500.0,0.00037798,15]
[356793310,1743203432050,-500.0,0.00037798,15]
[356793312,1743203432060,-494.50215481,0.00037798,15]
[356793313,1743203432071,-1045.92916888,0.000378,2]
[356793315,1743203432080,-300.0,0.00037829,2]
[356793317,1743203432090,-500.0,0.00038342,7]
[356793318,1743203432100,-166.65666667,0.00038356,30]
[356793319,1743203432110,-155.57,0.00038372,2]
[356793320,1743203432120,-188.03,0.00038443,2]
[356793321,1743203432129,-166.65666667,0.00038603,30]
[356793322,1743203432139,-731.87225603,0.00038613,7]
[356793324,1743203432149,-166.65666667,0.00038822,30]
[356793325,1743203432158,-166.66,0.00038907,2]
[356793327,1743203432168,-1024.31933254,0.00038985,5]
[356793328,1743203432178,-1015.60961633,0.00038985,5]
[356793330,1743203432191,-166.65666667,0.00039068,30]
[356793332,1743203432201,-281.29530193,0.0003907,2]
[356793334,1743203432211,-211.0,0.0003908,2]
[356793335,1743203432221,-367.78,0.00039177,2]
[356793337,1743203432231,-300.0,0.00039198,2]
[356793338,1743203432241,-500.0,0.00039279,7]
[356793340,1743203432251,-166.65666667,0.00039315,30]
[356793342,1743203432262,-166.65666667,0.00039534,30]
[356793343,1743203432271,-932.7741,0.00039582,3]
[356793344,1743203432281,-2000.0,0.00039582,3]
[356793345,1743203432291,-548.4428,0.00039671,2]
[356793346,1743203432301,-7226.4375,0.00039671,2]
[356793347,1743203432310,-454.4224,0.00039671,2]
[356793348,1743203432320,-8489.559,0.00039671,2]
[356793349,1743203432330,-153.5496,0.00039671,2]
[356793350,1743203432340,-218.3966,0.00039681,2]
[356793351,1743203432349,-235.4793,0.00039681,2]
[356793352,1743203432359,-669.50083008,0.00039681,6]
[356793353,1743203432368,-500.0,0.00039681,2]
[356793354,1743203432378,-155.48232002,0.00039681,2]
[356793355,1743203432388,-842.17760508,0.00039681,12]
[356793356,1743203432397,-787.4161293,0.00039707,2]
[356793357,1743203432407,-155.57,0.0003975,2]
[356793358,1743203432416,-228.91,0.00039771,2]
[356793359,1743203432426,-1425.086356,0.00039779,2]
[356793360,1743203432435,-704.4432496,0.00039779,2]
[356793361,1743203432445,-5000.0,0.0003978,2]
[356793362,1743203432456,-24194.7659334,0.00039781,7]
[356793363,1743203432465,-388.31024902,0.00039781,7]
[356793364,1743203432475,-142581.74781966,0.00039781,7]
[356793365,1743203432488,-1165.162,0.00039781,7]
[356793366,1743203432500,-393.04398086,0.00039781,7]
[356793367,1743203432512,-2454.00347354,0.00039781,7]
[356793368,1743203432528,-1569.56510515,0.00039781,7]
[356793369,1743203432540,-412.40818989,0.00039781,7]
[356793370,1743203432552,-3394.64244113,0.00039781,7]
[356793371,1743203432563,-872.98459677,0.00039781,7]
[356793372,1743203437538,-151.0,0.00017447,2]
[356793373,1743203437549,-175.45,0.00017447,2]
[356793374,1743203437561,-666.308,0.00017447,2]
[356793375,1743203437571,-151.0,0.00020447,2]
[356793376,1743203437584,-151.0,0.00023447,2]
[356793377,1743203437595,-151.0,0.00026447,2]
[356793378,1743203437605,-151.0,0.00029447,2]
[356793379,1743203437616,-151.0,0.00032447,2]
[356793380,1743203437625,-151.0,0.00035447,2]
[356793381,1743203437635,-34.97484421,0.00038447,2]
[356793382,1743203437647,-116.02515579,0.00038447,2]
[356793383,1743203437656,-336.31656911,0.00039781,7]
[356793384,1743203437667,-46068.94979608,0.00039781,7]
[356793385,1743203437679,-2281.87364935,0.00039781,7]
[356793386,1743203437693,-17567.02399998,0.00039781,7]
[356793387,1743203437707,-12149.5082939,0.00039781,7]
[356793388,1743203437719,-5857.79940005,0.00039781,7]
[356793389,1743203437734,-20029.8251868,0.00039781,7]
[356793390,1743203437745,-360.74326941,0.00039781,7]
[356793391,1743203437756,-1871.295,0.00039781,7]
[356793392,1743203437772,-2218.75848696,0.00039781,7]
[356793393,1743203437783,-5547.74016914,0.00039781,7]
[356793394,1743203437794,-193751.44942122,0.00039781,7]
[356793395,1743203437804,-166.65666667,0.00039781,30]
[356793396,1743203437813,-47205.9790118,0.00039781,7]
[356793397,1743203437822,-26180.68004026,0.0003988,2]
[356793398,1743203437832,-1100.0,0.000399,14]
[356793399,1743203437841,-587.09057016,0.0004,2]
[356793400,1743203437850,-377.19144617,0.0004,2]
[356793401,1743203437860,-211.40328224,0.0004,2]
[356793402,1743203437870,-160.59731558,0.0004,120]
[356793403,1743203437879,-300.0,0.0004,120]
[356793404,1743203437888,-1500.0,0.0004,7]
[356793405,1743203437897,-8067.53746838,0.0004,15]
[356793406,1743203437906,-166.65666667,0.0004,30]
[356793407,1743203437916,-166.66,0.0004015,2]
[356793408,1743203437925,-787.41612924,0.00040173,15]
[356793410,1743203437934,-166.65666667,0.00040247,30]
[356793412,1743203437944,-211.0,0.0004048,2]
[356793414,1743203437954,-166.65666667,0.00040493,30]
[356793416,1743203437963,-500.0,0.00040513,30]
[356793418,1743203437972,-787.41612924,0.00040639,15]
[356793420,1743203437981,-2300.0,0.000407,14]
[356793422,1743203437990,-4360.29865702,0.000407,8]
[356793425,1743203438002,-320.35899194,0.000407,8]
[356793427,1743203438052,-4527.09366746,0.000407,8]
[356793429,1743203439633,-271.00868358,0.000407,8]
[356793431,1743203439643,-166.65666667,0.00040712,30]
[356793432,1743203439653,-3500.0,0.000408,14]
[356793433,1743203439662,-226.62656173,0.0004089,2]
[356793434,1743203439672,-9739.151005,0.000409,2]
[356793435,1743203439682,-223.0,0.000409,2]
[356793436,1743203439691,-4700.0,0.000409,14]
[356793437,1743203439701,-157.47874011,0.000409,120]